Cogmind - Beta 14 @@@ ROGUE MODE // 2024.08.13 @ 13:39:38 Player: Zaros426 Result: Destroyed by as-33934 with Assembled Rifle Performance ------------- Evolutions (0) 0 Regions Visited (2) 400 Robots Destroyed (34) 170 Value Destroyed (765) 765 Prototype IDs (0) 0 Alien Tech Used (0) 0 Bonus (0) 0 TOTAL SCORE: 1335 Bonus ------- None Cogmind --------- Core Integrity 0/250 Matter 285/300 Energy 17/100 System Corruption 8% Temperature Cool (0) Movement Core (450) Ox8 Location -10/Mines Parts ------- > --- POWER (1) -------- (None) > --- PROPULSION (2) --- (None) > --- UTILITY (2) ------ Large Storage Unit Light Armor Plating > --- WEAPON (2) ------- EM Pulse Gun > --- INVENTORY (15) --- Improved Heat Sink Huge Storage Unit Structural Scanner Signal Interpreter Signal Interpreter Seismic Detector Light Armor Plating Light Armor Plating EM Pulse Gun EM Pulse Gun Datajack Peak State ------------ > --- POWER ------------ Ion Engine > --- PROPULSION ------- Light Treads Aluminum Leg > --- UTILITY ---------- Improved Heat Sink Large Storage Unit > --- WEAPON ----------- Beam Cannon Beam Cannon > --- INVENTORY -------- Light Nuclear Core Wheel Heat Sink Huge Storage Unit Structural Scanner Signal Interpreter Signal Interpreter Seismic Detector EM Pulse Gun EM Pulse Gun EM Pulse Gun Beam Cannon Assault Rifle Assault Rifle Datajack [Rating: 10] Favorites ----------- Power Ion Engine Engine Ion Engine Power Core Light Nuclear Core Propulsion Light Treads Treads Light Treads Leg Aluminum Leg Wheel Wheel Utility Large Storage Unit Device Improved Heat Sink Storage Large Storage Unit Protection Light Armor Plating Weapon Beam Cannon Energy Gun EM Pulse Gun Energy Cannon Beam Cannon Ballistic Gun Assault Rifle Build | -11 -10 -10 ------- Run | Yrd Mat Min Slots Evolved . | . . . Power . | . . . Propulsion . | . . . Utility . | . . . Weapon . | . . . Parts Attached 30 | 6 20 4 Power 3 | 1 2 . Engine 2 | 1 1 . Core 1 | . 1 . Reactor . | . . . Propulsion 7 | 2 5 . Treads 4 | . 4 . Leg 2 | 2 . . Wheel 1 | . 1 . Hover . | . . . Flight . | . . . Utility 13 | 1 10 2 Device 8 | 1 7 . Storage 1 | . 1 . Processor . | . . . Hackware . | . . . Protection 4 | . 2 2 Artifact . | . . . Weapon 7 | 2 3 2 Energy Gun 3 | 2 . 1 Energy Cannon 3 | . 2 1 Ballistic Gun 1 | . 1 . Ballistic Cannon . | . . . Launcher . | . . . Special Weapon . | . . . Impact Weapon . | . . . Slashing Weapon . | . . . Piercing Weapon . | . . . Special Melee Weapon . | . . . Unidentified Prototypes . | . . . Parts Lost 11 | . 3 8 Power 1 | . . 1 Propulsion 2 | . . 2 Utility 4 | . 2 2 Weapon 4 | . 1 3 Highest Loss Streak 8 | . 2 8 To Critical Strikes . | . . . Average Slot Usage (%) 97 | . 98 73 Engine 12 | . 12 4 Core 1 | . 1 . Treads 15 | . 15 20 Leg 10 | . 11 . Wheel 1 | . 1 . Device 12 | . 12 . Storage 10 | . 10 14 Protection 4 | . 3 14 Energy Gun 5 | . 5 8 Energy Cannon 19 | . 20 12 Ballistic Gun 2 | . 2 . Peak Build Rating 10 | 6 10 8 Average Rating 8 | 4 8 6 On Entrance 4 | . 6 8 Naked Turns . | . . . Heaviest Build 34 | 8 34 34 Greatest Support 40 | 20 40 40 Greatest Overweight (x) 3 | . 3 . Average Overweight (x) . | . . . Largest Inventory Capacity 15 | 5 15 15 Average Capacity 11 | 5 12 15 Most Carried 15 | 4 15 15 Average Carried 10 | 2 11 13 Final Capacity 15 | 5 15 15 Final Carried 15 | 3 15 11 Class Distribution -------------------- 100% | Mutant Dominant Class ---------------- Mutant | -10/Materials Mutant | -10/Mines Resources | -11 -10 -10 ----------- Run | Yrd Mat Min Matter Collected 545 | 260 285 . Remotely . | . . . Salvage Created 1072 | 90 934 48 Parts 78 | 7 69 2 Haulers Intercepted 2 | . 2 . Recyclers Shooed 1 | . 1 . Parts Field Recycled . | . . . Retrieved Matter . | . . . Parts Self-Destructed . | . . . Prevented . | . . . Kills | -11 -10 -10 ------- Run | Yrd Mat Min Combat Hostiles Destroyed 24 | 1 19 4 Guns 8 | 1 5 2 Cannons 13 | . 11 2 AOE 2 | . 2 . Classes Destroyed 9 | 3 4 2 Worker 3 | 1 2 . Builder 3 | . 2 1 Tunneler 1 | 1 . . Hauler 2 | . 2 . Watcher 3 | . 3 . Swarmer 6 | . 6 . Grunt 14 | 1 13 . Demolisher 2 | . . 2 Assembled 2 | . . 2 Best Kill Streak 5 | 1 5 5 Combat Bots Only 4 | 1 4 4 Max Kills in Single Turn 2 | 1 2 2 Gunslinging . | . . . Exploded 2 | . 2 . Melee . | . . . Uniques/NPCs Destroyed . | . . . Combat | -11 -10 -10 -------- Run | Yrd Mat Min Hostile Shots Fired 135 | 3 88 44 Missed 35 | 2 23 10 Damage Taken 1812 | 10 763 1039 Core 256 | . 117 139 Absorbed by Shields . | . . . Core Remaining (%) 100 | 100 . . Volleys Fired 94 | 4 79 11 Largest 2 | 2 2 2 Hottest 120 | 80 120 100 Shots Fired 179 | 8 156 15 Gun 111 | 8 94 9 Cannon 68 | . 62 6 Launcher . | . . . Special . | . . . Kinetic 34 | . 34 . Thermal 68 | . 62 6 Explosive . | . . . Electromagnetic 77 | 8 60 9 Robot Hit Streak 11 | 6 10 11 Robot Miss Streak 5 | 1 5 1 Penetration Max . | . . . Secondary Targets 1 | . 1 . Max Gunslinging Chain 1 | . 1 . Shots Hit Robots 99 | 6 85 8 Core Hits 44 | 3 33 8 Critical Kills . | . . . Critical Parts Destroyed . | . . . Critical Strikes . | . . . Melee Attacks . | . . . Impact . | . . . Slashing . | . . . Piercing . | . . . Sneak Attacks . | . . . Combat Hostiles . | . . . Follow-up Attacks . | . . . Damage Inflicted 1713 | 111 1439 163 Guns 897 | 80 725 92 Cannons 681 | . 610 71 Explosions 133 | 31 102 . Melee . | . . . Ramming 2 | . 2 . Kinetic 220 | . 220 . Thermal 814 | 31 712 71 Explosive . | . . . Electromagnetic 677 | 80 505 92 Impact . | . . . Slashing . | . . . Piercing . | . . . Highest Corruption 8 | . . 8 Average Corruption 7 | . . 7 Corruption Purged . | . . . Corruption Blocked . | . . . Effects 1 | . . 1 Message Errors 1 | . . 1 Overload Shots . | . . . Overflow Damage 19 | . 19 . Projectiles 19 | . 19 . Explosions . | . . . Melee . | . . . Knockbacks . | . . . Impact . | . . . Kinetic . | . . . Secondary . | . . . Self-Inflicted Damage . | . . . Shots . | . . . Rammed 1 | . 1 . Targets Rammed 1 | . 1 . Kicked . | . . . Crushed . | . . . Highest Temperature 360 | 36 360 138 Average Temperature 87 | 16 93 71 Received Heat Transfer 327 | 6 321 . Siege Activations . | . . . Robots Corrupted 1 | . 1 . Combat Hostiles 1 | . 1 . Parts Fried 1 | . 1 . Impact Corruptions . | . . . Robots Melted . | . . . Combat Hostiles . | . . . Parts Melted 2 | . 2 . Heat Transferred 1543 | 50 1345 148 Parts Sabotaged . | . . . Parts Stolen . | . . . Parts Stripped . | . . . Power Chain Reactions 3 | 1 2 . Alert | -11 -10 -10 ------- Run | Yrd Mat Min Peak Influence 266 | 30 266 67 Initial 52 | . 19 52 Average 109 | 8 123 45 Maximum Alert Level 1 | . 1 . Low Security (%) 90 | 100 89 100 Level 1 9 | . 10 . Level 2 . | . . . Level 3 . | . . . Level 4 . | . . . Level 5 . | . . . High Security . | . . . Max Security . | . . . Squads Dispatched 5 | . 5 . Investigation 3 | . 3 . Extermination . | . . . Reinforcement 2 | . 2 . Assault . | . . . Garrison . | . . . Intercept . | . . . Searches Triggered . | . . . Construction Impeded . | . . . Haulers Reinforced . | . . . Active Scanning Responses . | . . . Cargo Convoy Interrupts . | . . . Stealth | -11 -10 -10 --------- Run | Yrd Mat Min Distress Signals . | . . . Communications Jammed . | . . . Distress Signals . | . . . Times Spotted 44 | 1 27 16 Peak Tracking Total 15 | 1 3 15 Tactical Retreats 1 | . . 1 Traps | -11 -10 -10 ------- Run | Yrd Mat Min Traps Triggered 2 | . 2 . Indirectly . | . . . Trap Hack Attempts . | . . . Triggered . | . . . Disarmed . | . . . Reprogrammed . | . . . Reused . | . . . Traps Extracted . | . . . Installed . | . . . Triggered . | . . . Machines | -11 -10 -10 ---------- Run | Yrd Mat Min Machines Disabled 2 | . 2 . Max in Single Turn 1 | . 1 . Machines Repaired . | . . . Machines Dismantled . | . . . Machines Sabotaged . | . . . Overloaded Fab Kills . | . . . Hacking | -11 -10 -10 --------- Run | Yrd Mat Min Machines Accessed 7 | . 7 . Terminals 6 | . 6 . Fabricators . | . . . Repair Stations . | . . . Recycling Units 1 | . 1 . Scanalyzers . | . . . Garrison Access . | . . . Total Hacks 20 | . 20 . Successful 8 | . 8 . Failed 11 | . 11 . Catastrophic 4 | . 4 . Database Lockouts 1 | . 1 . Manual 18 | . 18 . Terminals 19 | . 19 . Fabricators . | . . . Repair Stations . | . . . Recycling Units 1 | . 1 . Scanalyzers . | . . . Garrison Access . | . . . Terminal Hacks 3 | . 3 . Part Schematic 1 | . 1 . Branch Access Points 1 | . 1 . Locate Traps 1 | . 1 . Fabricator Hacks . | . . . Repair Station Hacks . | . . . Recycling Unit Hacks . | . . . Scanalyzer . | . . . Garrison Access Hacks . | . . . Unauthorized Hacks 5 | . 5 . Terminals 4 | . 4 . Track 1 | . 1 . Botnet 3 | . 3 . Fabricators . | . . . Repair Stations . | . . . Recycling Units 1 | . 1 . Tunnel 1 | . 1 . Scanalyzers . | . . . Garrison Access . | . . . Data Cores Recovered . | . . . Used . | . . . Hacking Detections 7 | . 7 . Full Trace Events 1 | . 1 . Feedback Events . | . . . Feedback Blocked . | . . . Robot Schematics Acquired . | . . . Robots Built . | . . . Authchips . | . . . Time . | . . . Total Robot Build Rating . | . . . Part Schematics Acquired 1 | . 1 . Parts Built . | . . . Authchips . | . . . Time . | . . . Total Part Build Rating . | . . . Parts Repaired . | . . . Time . | . . . Parts Recycled . | . . . Recycled Matter . | . . . Retrieved Matter . | . . . Retrieved Components . | . . . Parts Scanalyzed . | . . . Part Schematics Acquired . | . . . Parts Damaged . | . . . Bothacking | -11 -10 -10 ------------ Run | Yrd Mat Min Used RIF Installer . | . . . Robots Hacked . | . . . Non-combat . | . . . Combat . | . . . Robot Hacks Applied . | . . . Relay Couplers Released . | . . . Fabnet Peak Effective % . | . . . Robots Rewired . | . . . Allies Hacked . | . . . Hacks Repelled . | . . . Allies | -11 -10 -10 -------- Run | Yrd Mat Min Total Allies . | . . . Largest Group . | . . . Highest-Rated Group . | . . . Highest-Rated Ally . | . . . Total Orders . | . . . Ally Attacks . | . . . Total Damage . | . . . Kills . | . . . Allies Corrupted . | . . . Allies Melted . | . . . Intel | -11 -10 -10 ------- Run | Yrd Mat Min Robot Analysis Total . | . . . Derelict Logs Recovered 1 | . . 1 Drone Launches . | . . . Drone Recoveries . | . . . Exploration | -11 -10 -10 ------------- Run | Yrd Mat Min Turns Passed 2051 | 195 1787 69 Spaces Moved 1028 | 146 864 18 Core 19 | 19 . . Treads 535 | . 517 18 Legs 364 | 127 237 . Wheels 110 | . 110 . Hover . | . . . Flight . | . . . Fastest Speed 50 | 50 120 160 Average Speed 151 | 110 158 160 Slowest Speed 240 | 120 240 160 Overloaded Moves . | . . . Propulsion Burnouts . | . . . Robots Hopped . | . . . Cave-ins Triggered . | . . . Exploration Rate (%) 36 | 7 96 6 Regions Visited 2 Branch Regions 1 Pre-discovered Areas 1 | . 1 . Known Exits Taken 1 | . 1 . Unknown Exits Taken 1 | 1 . . Scrap Searched . | . . . Spaces Dug . | . . . Terrain Destroyed 13 | 6 7 . Melee . | . . . Projectile . | . . . AOE 13 | 6 7 . Terrain Rammed . | . . . Walls Destroyed . | . . . Machines Disabled . | . . . Actions | -11 -10 -10 --------- Run | Yrd Mat Min Total 1339 | 169 1127 43 Wait 142 | 5 127 10 Move 1026 | 145 863 18 Hop . | . . . Pick Up 27 | 6 21 . Fast Attach 11 | 6 5 . Attach 7 | . 3 4 Detach 4 | . 4 . Swap 12 | . 12 . Drop 15 | 3 12 . Fire 94 | 4 79 11 Melee . | . . . Ram . | . . . Kick . | . . . Crush 1 | . 1 . Escape Stasis . | . . . Rewire . | . . . Trap . | . . . Miscellaneous . | . . . Route ------- -11/Scrapyard -10/Materials (discovered 5 exits: [*Mat x3] / *Min x2) -10/Mines History --------- Turn | Location | Event 2 | -11/Scrapyard | Met Revision 17 87 | -11/Scrapyard | Discovered new exit (range 8) 196 | -11/Scrapyard | Entered Materials 324 | -10/Materials | Build established: Mutant 556 | -10/Materials | Discovered new exit (range 12) 778 | -10/Materials | Central database locked down 833 | -10/Materials | Discovered new exit (range 16) 1095 | -10/Materials | Discovered new exit (range 16) 1618 | -10/Materials | Discovered new exit (range 16) 1788 | -10/Materials | Discovered new exit (range 12) 1829 | -10/Materials | Identified exit to Mines 1983 | -10/Materials | Entered Mines 1984 | -10/Mines | Assembled infested the area 1990 | -10/Mines | Learned 2 Materials zone layouts 1996 | -10/Mines | Met a Derelict bent on vengeance 2001 | -10/Mines | Core integrity fell below 50% 2033 | -10/Mines | Core integrity fell below 20% 2052 | -10/Mines | Destroyed by as-33934 with Assembled Rifle Last Messages --------------- 02015_ D-53 Grenadier destroyed. 02015_ U-05 Engineer destroyed. 02016_ The unstable cave ceiling collapses. 02018_ D-53 Grenadier destroyed. 02021_ The unstable cave ceiling collapses. 02023_ R-06 Scavenger collects Wheel. 02024_ The unstable cave ceiling collapses. 02025_ as-89396 destroyed. 02027_ The unstable cave ceiling collapses. 02032_ Lgt. Treads destroyed. 02032_ System corrupted by crushing effect (+4). 02034_ The unstable cave ceiling collapses. 02035_ Beam Cannon destroyed. 02035_ System corrupted by crushing effect (+4). 02036_ 6FMYJOE ZF Y>1Q&3 02050_ Knocked back. Map ----- +----------------------------------------------------+ | ????????????????????????????????????????????? | | ????????????????????????????????????????????? | | ????????????????????????????????????????????? | | ????????????????????????????????????????????? | | ????????????????????????????????????????????? | | ????????????????????????????????????????????? | | ????????????????????????????????????????????? | | ????????????????????????????????????????????? | | ????????????????????????????????????????????? | | ????????????????????????????????????????????? | | ????????????????????????????????????????????? | | ????????????????????????????????????????????? | | ?????????????????????????#??????????????????? | | ????????????????????????? #?????????????????? | | ???????????????????????? ?????????????????? | | ???????????????????????? ?????????????????? | | ??????????????????????""" ?????????????????? | | ??????????????????????""" ?????????????????? | | ??????????????????##??""" ?????????????????? | | ??????????????????# ?? ?????????????????? | | ??????????????????? ? #?????????????????? | | ???????????????????? ## %###???????????????? | | ????????????????????## # ##??????????????? | | ????????????????????# # #??????????????? | | ????????????????????### #??????????????? | | ????????????????????# @ ####?????????????? | | ???????????????????## ##????????????? | | ???????????????????# %a# # #????????????? | | ???????????????????# % # # #????????????? | | ???????????????????# #????????????? | | ???????????????????## a # #????????????? | | ????????????????????# #????????????? | | ???????????????????# ## #????????????? | | ???????????????????# # #????????????? | | ?????????????????#### # # ##????????????? | | ?????????? #????????????? | | ?????????? ##????????????? | | ?????????????####### ###?????????????? | | ???????????????????## ##???????????????? | | ???????????????????## # ##????????????????? | | ????????????????????######??????????????????? | | ????????????????????????????????????????????? | | ????????????????????????????????????????????? | | | | | | | | | | | | | | | +----------------------------------------------------+ Best States ------------- Heat Dissipation 39 Energy Generation 14 Energy Capacity 250 Matter Stores 300 Matter Capacity 300 Sight Range 16 Terrain Scan Density 10 Armor Coverage 150 Evasion (%) 55 Recoil Reduction 2 Item Schematics ----------------- Huge Storage Unit | -10/Materials | Hacked Robot Schematics ------------------ None Fabricated ------------ Nothing Alien Tech Used ----------------- None Achievements -------------- None Challenges ------------ None Game ------ Seed OpticalScatterCharger Manual? 0 Play Time 00:32:53 Cumulative 4.2 hours Start 2024.08.13 @ 13:00:34 End 2024.08.13 @ 13:39:38 Sessions 1 Manual Loads 0 Difficulty Rogue Special Mode None Game No. 3 Rogue 3 Adventurer 0 Explorer 0 Win Type - Total 0 Types 0/0/0/0/0/0/0/0/0 Lore% 1 Gallery% 8 Achievement% 16 Wizard Run 0 Options --------- Layout 1 ASCII 0 Keyboard 0 Movement Numpad Keybinds 0 Fullscreen 1 Font 24/Smallcaps Map View 50x35 Zoom Use 0% Tactical HUD 1 Map Filters NONE Filters NONE Steam 0 RUN: 31424fb5-d3b0-4ff4-9de2-54da64536431